bitfinex/quotes_ETHUSD_20250803
["timestamp","ask_amount","ask_price","bid_price","bid_amount"]
[1754212546524,4.518,3464.4,3464.3,0.3581]
[1754212546823,0.144,3464.4,3464.3,0.3581]
[1754212547001,4.517,3464.5,3464.3,2.39314038]
[1754212547321,0.144,3464.5,3464.4,0.3561]
[1754212549950,0.144,3464.5,3464.4,0.1521]
[1754212550221,0.144,3464.5,3464.3,0.002]
[1754212550614,0.144,3464.5,3464.4,0.1521]
[1754212550812,0.144,3464.5,3464.3,0.206]
[1754212550985,0.144,3464.5,3464.3,0.002]
[1754212552227,1.4469,3464.4,3464.3,0.002]
[1754212552429,5.8199,3464.4,3464.3,0.002]
[1754212557450,9.41639,3464.4,3464.3,0.002]
[1754212558598,8.3739,3464.4,3464.3,0.002]
[1754212558743,8.8199,3464.4,3464.3,0.002]
[1754212560047,4.4469,3464.4,3464.3,0.002]
[1754212560235,4.923,3464.4,3464.3,0.002]
[1754212560635,5.3739,3464.4,3464.3,0.002]
[1754212562246,5.8199,3464.4,3464.3,0.002]
[1754212563787,9.41639,3464.4,3464.3,0.002]
[1754212565287,9.53030278,3464.4,3464.3,0.002]
[1754212566994,9.53028268,3464.4,3464.3,0.002]
[1754212568610,11.26728268,3464.4,3464.3,0.002]
[1754212572532,41.26728268,3464.4,3464.3,0.002]
[1754212572714,41.15339,3464.4,3464.3,0.002]
[1754212572865,41.26715742,3464.4,3464.3,0.002]
[1754212579109,61.25946122,3464.4,3464.3,0.002]
[1754212579310,41.38293542,3464.4,3464.3,0.002]
[1754212580036,41.26715742,3464.4,3464.3,0.002]
[1754212581527,41.38293442,3464.4,3464.3,0.002]
[1754212584833,48.53293442,3464.4,3464.3,0.002]
[1754212584993,68.52523822,3464.4,3464.3,0.002]
[1754212586693,48.53293442,3464.4,3464.3,0.002]
[1754212587306,48.53393442,3464.4,3464.3,0.002]
[1754212592318,3.0,3464.3,3463.9,0.002]
[1754212592561,42.431,3464.0,3463.9,0.002]
[1754212592745,47.06876742,3464.0,3463.9,0.002]
[1754212592951,48.00326742,3464.0,3463.9,0.002]
[1754212593158,48.00337792,3464.0,3463.9,0.002]
[1754212593319,50.87162499,3464.0,3463.9,0.002]
[1754212595254,70.86392879,3464.0,3463.9,0.002]
[1754212595715,71.15332879,3464.0,3463.9,0.002]
[1754212599263,2.5764,3463.8,3463.6,0.002]
[1754212599431,40.098063,3463.7,3463.6,0.002]
[1754212599629,42.287,3463.3,3463.2,0.002]
[1754212599830,60.20058172,3463.3,3463.2,0.002]
[1754212600068,61.13508172,3463.3,3463.2,0.002]
[1754212601843,2.5764,3463.0,3461.9,0.1521]
[1754212602043,40.66176792,3463.0,3461.9,0.1521]
[1754212602356,41.74026792,3463.0,3461.9,0.1521]
[1754212602928,41.56670892,3463.0,3461.9,0.1521]
[1754212603974,41.56670892,3463.0,3461.8,12.224304]
[1754212604280,41.56670892,3463.0,3462.0,0.1521]
[1754212604567,41.56670892,3463.0,3462.1,0.1521]
[1754212605426,36.25720892,3463.0,3461.8,12.224304]
[1754212605742,40.51636792,3463.0,3462.5,0.1521]
[1754212607362,40.51636792,3463.0,3462.4,0.204]
[1754212608353,36.14136792,3463.0,3461.8,12.224304]
[1754212608572,39.36987792,3463.0,3462.9,0.3581]
[1754212608731,39.36987792,3463.0,3462.9,0.1541]
[1754212608957,36.36987792,3463.0,3462.9,0.002]
[1754212609136,36.36987792,3463.0,3462.9,0.3581]
[1754212609351,39.91987792,3463.0,3462.9,0.3581]
[1754212609649,39.806,3463.0,3462.9,0.002]
[1754212610436,35.54447623,3463.0,3462.9,0.002]
[1754212610639,8.18247623,3463.0,3462.9,0.3581]
[1754212611073,8.069,3463.0,3462.9,0.3581]
[1754212611575,9.806,3463.0,3462.9,0.3581]
[1754212612393,9.806,3463.0,3462.9,0.1541]
[1754212612540,36.05483068,3463.0,3462.9,0.002]
[1754212612740,41.47855454,3463.0,3462.9,0.002]
[1754212612991,41.76795454,3463.0,3462.9,0.002]
[1754212613350,41.7679549,3463.0,3462.9,0.002]
[1754212614479,48.9179549,3463.0,3462.9,0.002]
[1754212618383,2.287,3462.5,3462.2,0.1101]
[1754212618585,4.375,3462.4,3462.3,0.204]
[1754212618902,5.0698,3462.4,3462.3,0.204]
[1754212619084,4.5198,3462.4,3462.3,0.204]
[1754212619259,5.0698,3462.4,3462.3,0.204]
[1754212619581,0.55,3462.3,3461.0,20.1371038]
[1754212619786,0.55,3462.1,3462.0,0.204]
[1754212619984,5.0698,3462.1,3462.0,0.204]
[1754212620479,5.0698,3462.1,3462.0,0.3141]
[1754212622282,0.6948,3462.1,3462.0,0.3141]
[1754212622581,5.0698,3462.1,3462.0,0.3141]
[1754212623246,0.6948,3462.1,3462.0,1.5679404]
[1754212623461,4.5198,3462.1,3462.0,1.5679404]
[1754212623681,0.1448,3462.1,3462.0,1.5699404]
[1754212623891,4.5198,3462.1,3462.0,1.5699404]
[1754212630712,0.1448,3462.1,3462.0,1.5699404]
[1754212631012,4.5198,3462.1,3462.0,1.5699404]
[1754212635590,4.5198,3462.1,3462.0,1.3659404]
[1754212636321,4.5198,3462.1,3462.0,1.2558404]
[1754212644370,4.9784,3462.1,3462.0,1.2558404]
[1754212644859,4.5198,3462.1,3462.0,1.2558404]
[1754212645162,4.9784,3462.1,3462.0,1.2558404]
[1754212645724,4.5198,3462.1,3462.0,1.2558404]
[1754212646127,0.1448,3462.1,3462.0,1.2558404]
[1754212646432,4.5188,3462.1,3462.0,1.2558404]
[1754212646660,4.5188,3462.1,3462.0,1.8058404]
[1754212647252,0.1448,3462.1,3462.0,1.9159404]
[1754212647425,4.5188,3462.1,3462.0,2.1199404]
[1754212647826,0.1448,3462.1,3462.0,2.1199404]
[1754212648233,0.1448,3462.1,3462.0,1.8058404]
[1754212650538,4.375,3462.2,3462.0,2.1199404]
[1754212650733,0.1458,3462.2,3462.1,1.41205843]
[1754212651767,1.073,3462.2,3462.1,1.41205843]
[1754212652131,5.447,3462.2,3462.1,1.41205843]
[1754212652647,5.447,3462.2,3462.0,0.552]
[1754212652943,0.9272,3462.1,3462.0,0.552]
[1754212654765,0.4586,3462.1,3462.0,0.552]
[1754212657075,0.9272,3462.1,3462.0,0.552]
[1754212658665,5.3012,3462.1,3462.0,0.552]
[1754212659231,5.3012,3462.1,3462.0,0.002]
[1754212660546,4.374,3462.1,3462.0,0.002]
[1754212661156,4.5188,3462.1,3462.0,0.002]
[1754212661480,4.5188,3462.1,3462.0,0.870474]
[1754212662071,4.9774,3462.1,3462.0,0.870474]
[1754212662450,5.446,3462.1,3462.0,0.002]
[1754212673652,5.996,3462.1,3462.0,0.002]
[1754212674442,6.5957,3462.1,3462.0,0.002]
[1754212675634,9.5957,3462.1,3462.0,0.002]
[1754212682645,5.2217,3462.1,3462.0,0.002]
[1754212682847,0.1448,3462.1,3462.0,0.002]
[1754212683144,4.5188,3462.1,3462.0,0.002]
[1754212684141,4.9748,3462.1,3462.0,0.002]
[1754212685047,4.5188,3462.1,3462.0,0.002]
[1754212685647,5.4212,3462.1,3462.0,0.002]
[1754212686230,4.9748,3462.1,3462.0,0.002]
[1754212687026,5.4212,3462.1,3462.0,0.002]
[1754212688335,1.0472,3462.1,3462.0,0.002]
[1754212688538,5.4212,3462.1,3462.0,0.002]
[1754212689246,5.9712,3462.1,3462.0,0.002]
[1754212689546,6.51342,3462.1,3462.0,0.002]
[1754212690346,5.9712,3462.1,3462.0,0.002]
[1754212690551,5.5248,3462.1,3462.0,0.002]
[1754212691946,6.8068,3462.1,3462.0,0.002]
[1754212692115,5.0688,3462.1,3462.0,0.002]
[1754212693011,5.5248,3462.1,3462.0,0.002]
[1754212694243,5.9712,3462.1,3462.0,0.002]
[1754212694420,1.5972,3462.1,3462.0,0.002]
[1754212694620,5.9712,3462.1,3462.0,0.002]
[1754212695458,1.5972,3462.1,3462.0,0.002]
[1754212695664,5.9712,3462.1,3462.0,0.002]
[1754212697447,1.5972,3462.1,3462.0,0.002]
[1754212697655,5.9712,3462.1,3462.0,0.002]
[1754212698432,5.5248,3462.1,3462.0,0.002]
[1754212698753,0.1448,3462.1,3462.0,0.002]
[1754212698955,4.5188,3462.1,3462.0,0.002]
[1754212699844,4.9911,3462.1,3462.0,0.002]
[1754212700222,5.4453,3462.1,3462.0,0.002]
[1754212708363,6.53993,3462.1,3462.0,0.002]
[1754212709466,5.9953,3462.1,3462.0,0.002]
[1754212718079,4.5178,3462.1,3462.0,0.002]
[1754212718878,4.5178,3462.1,3462.0,0.870515]
[1754212722355,4.9901,3462.1,3462.0,0.870515]
[1754212722873,4.5178,3462.1,3462.0,0.870515]
[1754212727477,0.001,3462.2,3462.0,1.184615]
[1754212727672,0.001,3462.2,3462.0,0.870515]
[1754212727975,0.001,3462.2,3462.0,0.002]
[1754212728278,0.001,3462.2,3462.1,0.868394]
[1754212740490,0.001,3462.2,3462.1,20.889582]
[1754212740705,0.001,3462.2,3462.1,21.3195978]
[1754212747622,0.001,3462.2,3462.1,24.3195978]
[1754212748417,0.4849,3463.0,3462.2,3.0]
[1754212748618,0.4849,3463.0,3462.6,20.1371038]
[1754212748825,0.4849,3463.0,3462.7,2.01371038]
[1754212749021,0.6045,3463.1,3462.8,4.372]
[1754212749022,0.001,3463.1,3462.8,4.372]
[1754212749266,0.001,3463.1,3463.0,19.9923038]
[1754212749385,0.001,3463.1,3463.0,24.3643038]
[1754212750688,0.001,3463.1,3463.0,27.3643038]
[1754212750896,0.001,3463.5,3463.1,3.0]
[1754212751232,0.001,3463.5,3463.4,22.9923038]
[1754212751403,0.001,3463.5,3463.4,27.3643038]
[1754212751728,0.001,3463.5,3463.4,27.5083038]
[1754212751896,0.001,3463.5,3463.4,27.9932038]
[1754212752096,0.001,3463.5,3463.4,30.00691418]
[1754212755252,0.001,3463.5,3463.4,30.11701418]
[1754212755609,0.001,3463.5,3463.4,30.00691418]
[1754212764445,0.001,3463.5,3463.4,10.01261038]
[1754212764446,0.9288,3463.5,3463.4,10.01261038]
[1754212764655,0.9288,3463.5,3463.4,0.6289]
[1754212764861,0.9288,3463.5,3463.4,4.9989]
[1754212767735,0.9288,3463.5,3463.4,4.37]
[1754212769634,0.6268,3463.7,3463.4,24.3623038]
[1754212769838,0.6268,3463.7,3463.5,0.02887252]
[1754212770052,0.4828,3463.6,3463.4,24.9891038]
[1754212770251,0.4828,3463.6,3463.4,25.1331038]
[1754212771785,0.445,3463.5,3463.4,25.1331038]
[1754212772127,0.9278,3463.5,3463.4,25.1331038]
[1754212772555,0.4828,3463.5,3463.4,25.1331038]
[1754212775334,0.4838,3463.5,3463.4,25.1331038]
[1754212780878,0.001,3463.9,3463.5,3.0]
[1754212781081,0.001,3463.9,3463.8,0.144]
[1754212781300,0.001,3463.9,3463.8,4.514]
[1754212781460,0.4838,3463.9,3463.8,4.514]
[1754212781805,0.4838,3463.9,3463.8,5.103]
[1754212783687,0.9288,3463.9,3463.8,5.103]
[1754212783859,0.9288,3463.9,3463.8,5.9133]
[1754212784242,0.4838,3463.9,3463.8,5.9133]
[1754212784685,0.4838,3463.9,3463.8,25.9056038]
[1754212784888,0.5,3464.0,3463.8,25.9056038]
[1754212785064,0.5,3464.0,3463.8,26.3596038]
[1754212785260,0.5,3464.0,3463.9,1.85559883]
[1754212786067,0.5,3464.0,3463.9,2.44459883]
[1754212786970,0.5,3464.0,3463.9,2.89859883]
[1754212787598,0.5,3464.0,3463.9,5.44459883]
[1754212787769,0.5,3464.0,3463.9,5.89859883]
[1754212788503,0.5,3464.0,3463.9,5.44459883]
[1754212788876,0.5,3464.0,3463.9,5.89859883]
[1754212790178,0.5,3464.0,3463.9,5.44459883]
[1754212790375,0.9957,3464.0,3463.9,5.44459883]
[1754212790985,0.5,3464.0,3463.9,5.44459883]
[1754212791189,1.4381,3464.0,3463.9,9.81459883]
[1754212794349,1.4381,3464.0,3463.9,5.44459883]
[1754212794503,1.4381,3464.0,3463.9,9.81359883]
[1754212797798,0.9967,3464.0,3463.9,9.81359883]
[1754212800492,0.9967,3464.0,3463.9,5.44459883]
[1754212800706,1.4391,3464.0,3463.9,4.369]
[1754212801857,1.4391,3464.0,3463.8,0.144]
[1754212802115,1.0821,3463.9,3463.8,4.369]
[1754212802678,1.0821,3463.9,3463.7,4.369]
[1754212802879,1.0821,3463.9,3463.4,0.03087336]
[1754212802880,0.9381,3463.8,3463.4,0.002]
[1754212803076,0.9381,3463.8,3463.5,4.369]
[1754212803276,0.9381,3463.7,3463.5,4.369]
[1754212803508,0.144,3463.6,3463.4,4.371]
[1754212803703,1.0821,3463.6,3463.4,4.371]
[1754212803900,1.0821,3463.6,3463.4,0.002]
[1754212804103,0.144,3463.6,3463.4,0.002]
[1754212804288,0.9381,3463.5,3463.4,0.002]
[1754212806420,0.144,3463.6,3463.4,24.9018105]
[1754212806619,0.144,3463.6,3463.4,25.3355105]
[1754212807013,0.4957,3463.9,3463.4,25.3355105]
[1754212807210,0.501,3464.0,3463.4,25.3355105]
[1754212807410,0.4957,3463.8,3463.4,25.3355105]
[1754212807593,0.4957,3463.8,3463.5,2.12739213]
[1754212807795,0.4957,3463.8,3463.6,4.372]
[1754212808624,0.9381,3463.7,3463.5,6.49939213]
[1754212808827,0.501,3464.0,3463.5,4.372]
[1754212809022,0.9381,3463.6,3463.5,4.372]
[1754212809432,0.9381,3463.6,3463.4,0.002]
[1754212809636,0.501,3464.0,3463.4,0.002]
[1754212809637,0.9381,3463.5,3463.4,0.002]
[1754212810530,0.4424,3463.8,3463.4,0.03087336]
[1754212810698,0.4424,3463.8,3463.5,0.02887252]
[1754212810699,0.4957,3463.7,3463.5,0.02887252]
[1754212811144,0.4957,3463.6,3463.4,4.381]
[1754212811302,0.501,3464.0,3463.4,5.16267]
[1754212811498,0.501,3464.0,3463.5,0.02887252]
[1754212811698,0.4957,3463.9,3463.4,25.5886738]
[1754212811898,0.4957,3463.8,3463.5,0.02887252]
[1754212812124,0.4957,3463.8,3463.6,1.88422883]
[1754212812326,0.4957,3463.8,3463.7,0.02887086]
[1754212813046,0.4957,3463.8,3463.6,1.88422883]
[1754212813965,0.4957,3463.8,3463.6,1.91310052]
[1754212814330,0.4957,3463.8,3463.7,4.38]
[1754212814530,0.4957,3463.8,3463.7,5.16167]
[1754212815745,0.4957,3463.8,3463.7,5.19054086]
[1754212816132,0.4957,3463.8,3463.7,5.16167]
[1754212817751,0.501,3464.0,3463.7,5.19054086]
[1754212817955,0.501,3464.0,3463.8,0.4337]
[1754212818134,0.501,3464.0,3463.9,4.98469328]
[1754212818636,0.501,3464.0,3463.9,5.59552409]
[1754212819245,0.501,3464.0,3463.9,5.73952409]
[1754212820159,0.9807,3464.0,3463.9,5.73952409]
[1754212822830,0.501,3464.0,3463.9,1.36052409]
[1754212823036,1.4118,3464.0,3463.9,0.6397]
[1754212823237,0.9807,3464.0,3463.9,0.6397]
[1754212823556,0.9807,3464.0,3463.9,0.02886919]
[1754212823758,0.501,3464.0,3463.9,0.02886919]
[1754212824071,0.501,3464.0,3463.9,0.144]
[1754212824268,0.501,3464.0,3463.9,0.645]
[1754212825952,0.9807,3464.0,3463.9,0.645]
[1754212826152,0.501,3464.0,3463.9,0.645]
[1754212826842,0.9807,3464.0,3463.9,0.645]
[1754212827043,0.501,3464.0,3463.9,0.645]
[1754212827675,0.9807,3464.0,3463.9,0.645]
[1754212829573,1.4118,3464.0,3463.6,0.002]
[1754212829878,0.9108,3463.9,3463.7,4.378]
[1754212830168,0.9108,3463.8,3463.7,4.378]
[1754212835346,0.9108,3463.8,3463.6,0.869986]
[1754212835563,0.4311,3463.8,3463.7,4.378]
[1754212836084,0.9108,3463.8,3463.7,4.378]
[1754212836375,0.9108,3463.8,3463.7,5.023]
[1754212836763,0.9108,3463.8,3463.7,4.378]
[1754212836943,0.9108,3463.8,3463.6,0.869987]
[1754212837180,0.4311,3463.8,3463.7,4.377]
[1754212837784,0.9108,3463.8,3463.7,4.377]
[1754212837982,0.9108,3463.8,3463.7,5.022]
[1754212838974,0.9108,3463.8,3463.7,4.377]
[1754212839984,0.9108,3463.8,3463.6,0.869987]
[1754212840187,0.4311,3463.8,3463.7,4.377]
[1754212840554,0.4311,3463.8,3463.7,4.376]
[1754212840753,0.9108,3463.8,3463.7,4.376]
[1754212840961,0.9108,3463.8,3463.7,5.021]
[1754212841161,0.4797,3463.8,3463.7,5.5379]
[1754212842485,0.9108,3463.8,3463.7,0.645]
[1754212842683,1.0548,3463.8,3463.6,0.002]
[1754212842883,0.144,3463.8,3463.7,4.376]
[1754212843788,1.0548,3463.8,3463.7,4.376]
[1754212844901,1.0548,3463.8,3463.6,0.503]
[1754212844902,1.0548,3463.8,3463.6,0.002]
[1754212845200,0.9108,3463.7,3463.6,0.002]
[1754212857105,0.4828,3463.7,3463.6,0.002]
[1754212858012,0.144,3463.8,3463.6,0.002]
[1754212858314,0.4828,3463.7,3463.6,0.002]
[1754212862415,0.9493,3463.7,3463.6,0.002]
[1754212862606,0.144,3463.8,3463.6,0.002]
[1754212862778,0.4838,3463.9,3463.6,2.47276038]
[1754212862779,0.001,3463.9,3463.6,2.47276038]
[1754212863012,0.145,3463.9,3463.7,0.4283]
[1754212863510,0.145,3463.9,3463.7,0.9293]
[1754212865097,0.001,3463.9,3463.8,0.4283]
[1754212865279,0.001,3463.9,3463.8,1.08060847]
[1754212867588,0.001,3463.9,3463.8,1.58160847]
[1754212867784,0.001,3463.9,3463.8,1.69170847]
[1754212867990,0.144,3464.1,3463.8,1.66283845]
[1754212868289,0.001,3464.3,3464.0,22.9923038]
[1754212868506,0.001,3464.3,3464.0,23.1363038]
[1754212868706,0.001,3464.3,3464.1,0.4283]
[1754212868903,0.001,3464.3,3464.1,3.4283]
[1754212869099,0.001,3464.3,3464.1,3.0]
[1754212869304,0.001,3464.3,3464.2,1.98987653]
[1754212869826,0.001,3464.3,3464.2,9.36787653]
[1754212870801,0.001,3464.3,3464.2,9.62197653]
[1754212871127,0.001,3464.3,3464.2,9.51187653]
[1754212871516,0.001,3464.3,3464.2,9.62197653]
[1754212872987,0.001,3464.3,3464.2,9.73767253]
[1754212874425,0.001,3464.3,3464.2,9.62757253]
[1754212878826,0.001,3464.3,3464.2,9.73767253]
[1754212882332,0.001,3464.3,3464.2,9.62757253]
[1754212884795,0.001,3464.3,3464.2,9.19427253]
[1754212886206,0.4963,3464.3,3464.2,9.19327253]
[1754212887326,0.001,3464.3,3464.2,9.19327253]
[1754212887526,0.4963,3464.3,3464.2,9.19327253]
[1754212887726,0.4963,3464.3,3464.2,4.82127253]
[1754212887925,0.9408,3464.3,3464.2,4.631696]
[1754212888501,0.9408,3464.3,3464.2,7.631696]
[1754212892850,0.4963,3464.3,3464.2,7.631696]
[1754212893902,0.001,3464.3,3464.2,7.631696]
[1754212894451,0.4963,3464.3,3464.2,7.631696]
[1754212894643,0.4963,3464.3,3464.2,9.81671098]
[1754212896805,0.001,3464.4,3464.3,3.0]
[1754212897010,0.001,3464.4,3464.3,23.66884877]
[1754212898040,0.001,3464.4,3464.3,23.78453377]
[1754212898545,0.001,3464.4,3464.3,28.02453377]
[1754212898845,0.001,3464.4,3464.3,28.50541762]
[1754212899640,0.4455,3465.0,3464.3,24.37551762]
[1754212899641,0.001,3465.0,3464.3,24.37551762]
[1754212899842,6.939,3466.4,3465.0,3.0]
[1754212900008,0.4953,3465.8,3465.1,4.54385919]
[1754212900213,0.4963,3465.9,3465.5,19.9923038]
[1754212900447,0.001,3465.9,3465.5,24.5083038]
[1754212900744,0.001,3465.9,3465.5,24.9656038]
[1754212901146,0.001,3465.9,3465.5,27.9656038]
[1754212901346,0.001,3465.9,3465.5,28.0757038]
[1754212902211,0.001,3465.9,3465.5,27.9656038]
[1754212903918,0.4963,3465.9,3465.5,27.9656038]
[1754212905420,0.001,3465.9,3465.5,27.9656038]
[1754212907238,0.001,3465.9,3465.5,28.0812448]
[1754212907428,0.4963,3465.9,3465.5,28.0812448]
[1754212907753,0.4963,3465.6,3465.5,27.6239448]
[1754212910149,0.001,3465.6,3465.5,27.6239448]
[1754212910354,0.001,3465.6,3465.5,31.8639448]
[1754212910534,0.001,3465.6,3465.5,27.6239448]
[1754212914036,0.4997,3465.6,3465.5,27.6239448]
[1754212914959,0.9659,3465.6,3465.5,27.6209448]
[1754212921065,0.9659,3465.6,3465.5,0.115641]
[1754212921251,1.1099,3465.6,3465.5,0.115641]
[1754212923937,1.1099,3465.6,3465.3,4.369]
[1754212924236,0.9649,3465.5,3465.3,4.369]
[1754212924450,0.9649,3465.4,3465.3,4.369]
[1754212931878,0.6437,3465.6,3465.3,4.369]
[1754212932069,0.4987,3465.5,3465.3,4.369]
[1754212932446,0.9649,3465.5,3465.3,4.369]
[1754212933078,0.4987,3465.4,3465.3,4.369]
[1754212933576,0.001,3465.6,3465.3,4.8363]
[1754212933782,0.001,3465.6,3465.5,19.9923038]
[1754212933992,0.001,3465.6,3465.5,24.3613038]
[1754212934150,0.001,3465.6,3465.5,24.5053038]
[1754212934550,0.9659,3465.6,3465.5,24.5053038]
[1754212936652,0.4997,3465.6,3465.5,24.5053038]
[1754212937550,0.001,3465.6,3465.5,27.5053038]
[1754212938067,0.4997,3465.6,3465.5,27.5053038]
[1754212938293,0.001,3465.6,3465.5,27.5053038]
[1754212938474,0.4997,3465.6,3465.5,27.5053038]
[1754212938675,0.4997,3465.6,3465.5,7.369]
[1754212939893,0.4997,3465.6,3465.5,4.369]
[1754212940098,0.4997,3465.6,3465.5,4.39785586]
[1754212940615,0.001,3465.6,3465.5,4.39785586]
[1754212941203,0.001,3465.6,3465.5,7.39785586]
[1754212941510,0.001,3465.6,3465.5,7.369]
[1754212942585,0.4681,3465.6,3465.5,7.369]
[1754212942787,0.4681,3465.6,3465.5,4.369]
[1754212942788,0.001,3465.6,3465.5,4.369]
[1754212943017,0.001,3465.9,3465.5,4.9317]
[1754212943169,0.001,3465.9,3465.8,22.9923038]
[1754212943371,0.001,3465.9,3465.8,27.5053038]
[1754212943822,0.001,3465.9,3465.8,28.0680038]
[1754212947200,0.001,3465.9,3465.8,27.9579038]
[1754212947717,0.001,3465.9,3465.8,28.1019038]
[1754212951410,0.001,3465.9,3465.8,27.6493038]
[1754212951908,0.4681,3465.9,3465.8,27.6493038]
[1754212953483,0.001,3465.9,3465.8,27.6493038]
[1754212954480,0.001,3465.9,3465.8,28.1019038]
[1754212954978,0.21194986,3468.4,3465.9,3.0]
[1754212955177,0.4681,3466.9,3466.7,19.9923038]
[1754212955423,0.4681,3466.9,3466.8,4.368]
[1754212955636,0.8989,3466.9,3466.8,4.368]
[1754212955784,0.4681,3466.9,3466.8,4.368]
[1754212956617,0.8989,3466.9,3466.8,4.368]
[1754212965227,0.4681,3466.9,3466.8,4.512]
[1754212983081,0.9363,3466.9,3466.8,4.512]
[1754212984219,0.9363,3466.9,3466.8,5.379116]
[1754212987926,0.4681,3466.9,3466.8,5.379116]
[1754212991233,0.001,3466.9,3466.8,5.379116]
[1754212991599,0.001,3466.9,3466.8,5.831016]
[1754212991891,0.001,3466.9,3466.8,8.379116]
[1754212992091,0.001,3467.2,3467.1,19.9923038]
[1754212992297,0.001,3467.2,3467.1,24.3583038]
[1754212992493,0.001,3467.2,3467.1,24.5023038]
[1754212992697,0.001,3467.2,3467.1,24.9800038]
[1754212993428,0.4787,3467.2,3467.1,24.9800038]
[1754212996239,0.001,3467.2,3467.1,24.9800038]
[1754212996802,0.4787,3467.2,3467.1,24.9800038]
[1754212998045,0.4787,3467.2,3467.1,20.6140038]
[1754212998216,0.4787,3467.2,3467.1,24.9800038]
[1754212999130,0.4787,3467.2,3467.1,0.6217]
[1754212999332,0.9469,3467.2,3467.1,4.9877]
[1754212999533,0.9469,3467.2,3467.1,5.01654254]
[1754213000134,0.9469,3467.2,3467.1,4.9877]
[1754213000515,0.9469,3467.2,3467.1,0.6217]
[1754213000731,0.9469,3467.2,3467.1,4.9877]
[1754213003566,0.001,3467.2,3467.1,5.78647]
[1754213004131,0.4601,3467.2,3467.1,5.78647]
[1754213004965,0.001,3467.2,3467.1,25.7787738]
[1754213005445,0.4601,3467.2,3467.1,25.7787738]
[1754213005645,0.001,3467.2,3467.1,25.7787738]
[1754213006376,0.4601,3467.2,3467.1,25.7787738]
[1754213008663,0.4601,3467.2,3467.1,5.78647]
[1754213008966,0.8994,3467.2,3467.1,5.78647]
[1754213010462,0.8994,3467.2,3467.1,1.42047]
[1754213010664,0.8994,3467.2,3467.1,5.78647]
[1754213012718,0.8994,3467.2,3467.1,1.42047]
[1754213012858,0.8994,3467.2,3467.1,5.78647]
[1754213014279,0.4601,3467.2,3467.1,5.78647]
[1754213016089,0.8994,3467.2,3467.1,5.78647]
[1754213025107,0.4601,3467.2,3467.1,5.78647]
[1754213025801,0.001,3467.2,3467.1,5.78647]
[1754213026197,0.001,3467.2,3467.1,6.21687]
[1754213026579,0.001,3467.3,3467.2,3.0]
[1754213026904,0.001,3467.3,3467.2,24.7657008]
[1754213027268,0.001,3467.3,3467.2,25.2248008]
[1754213029691,0.001,3467.3,3467.2,25.1147008]
[1754213032500,0.001,3467.3,3467.2,24.6843008]
[1754213032678,0.001,3467.3,3467.2,25.1451008]
[1754213033602,0.001,3467.6,3467.2,25.2552008]
[1754213033810,0.001,3467.6,3467.4,3.0]
[1754213034001,0.001,3467.6,3467.5,7.365]
[1754213034176,0.001,3467.6,3467.5,7.509]
[1754213034509,0.001,3467.6,3467.5,7.9698]
[1754213036008,0.001,3467.6,3467.5,8.4506]
[1754213036202,0.001,3467.6,3467.5,9.24937]
[1754213039906,0.001,3467.6,3467.5,8.78857]
[1754213040712,0.4818,3467.6,3467.5,4.42357]
[1754213041622,0.4818,3467.6,3467.5,8.78757]
[1754213042802,0.001,3467.6,3467.5,8.78757]
[1754213042988,0.001,3467.6,3467.5,9.24837]
[1754213044021,0.001,3467.6,3467.5,8.78757]
[1754213044325,0.4808,3468.1,3467.6,3.0]
[1754213044502,0.144,3468.6,3468.0,19.9923038]
[1754213044701,0.4633,3468.3,3468.1,4.364]
[1754213044884,0.4633,3468.2,3468.1,4.364]
[1754213045091,0.9441,3468.2,3468.1,4.508]
[1754213048440,0.9441,3468.2,3468.1,0.144]
[1754213048638,0.9441,3468.2,3468.1,4.508]
[1754213049830,0.9441,3468.2,3468.1,0.144]
[1754213050035,0.9441,3468.2,3468.1,4.508]
[1754213050341,0.9441,3468.2,3468.1,4.364]
[1754213053609,0.9441,3468.2,3467.9,0.866963]
[1754213053832,0.144,3468.0,3467.3,0.144]
[1754213054036,0.9441,3467.9,3467.4,4.364]
[1754213054213,0.9441,3467.8,3467.6,0.867018]
[1754213054405,1.0881,3467.7,3467.6,0.867018]
[1754213055402,1.0881,3467.7,3467.5,4.364]
[1754213055602,0.9441,3467.6,3467.5,5.231073]
[1754213056320,0.9441,3467.6,3467.5,4.364]
[1754213057802,0.9441,3467.6,3467.4,0.867073]
[1754213058131,0.9441,3467.5,3467.4,4.364]
[1754213058432,0.9441,3467.5,3467.2,4.364]
[1754213058618,0.144,3467.4,3467.2,4.364]
[1754213058824,1.0881,3467.4,3467.2,4.364]
[1754213059028,0.9441,3467.3,3467.2,4.364]
[1754213068442,0.4808,3467.3,3467.2,4.364]
[1754213069152,0.4808,3467.3,3467.2,4.8448]
[1754213070610,0.9205,3467.3,3467.2,4.8448]
[1754213072450,0.4808,3467.3,3467.2,4.8448]
[1754213073051,0.4808,3467.3,3467.2,0.4808]
[1754213073243,0.4808,3467.3,3467.2,4.8448]